bitfinex/quotes_BTCUSD_20250624
["timestamp","ask_amount","ask_price","bid_price","bid_amount"]
[1750732452158,0.09367918,105200.0,105190.0,0.19715874]
[1750732452394,0.09367918,105200.0,105190.0,0.20666525]
[1750732452596,0.09367918,105200.0,105190.0,0.21617167]
[1750732452805,0.09367918,105200.0,105190.0,0.20666525]
[1750732453240,0.09367918,105200.0,105190.0,0.21617167]
[1750732454049,0.09363918,105200.0,105190.0,0.21617167]
[1750732454470,0.09363918,105200.0,105190.0,0.225678]
[1750732454870,0.09363918,105200.0,105190.0,0.23518406]
[1750732455275,0.09363918,105200.0,105190.0,0.23766343]
[1750732460583,0.09363918,105200.0,105190.0,0.26816343]
[1750732466031,0.09363918,105200.0,105190.0,0.22815746]
[1750732466248,0.09363918,105200.0,105190.0,0.21865122]
[1750732466449,0.09363918,105200.0,105190.0,0.22815728]
[1750732467306,0.09363918,105200.0,105190.0,0.23766325]
[1750732467709,0.09363918,105200.0,105190.0,0.22815728]
[1750732467828,0.09363918,105200.0,105190.0,0.23766325]
[1750732469327,0.09363918,105200.0,105190.0,0.26906325]
[1750732469619,0.24979918,105200.0,105190.0,0.64909533]
[1750732469970,0.24979918,105200.0,105190.0,0.36456511]
[1750732470170,0.24779918,105200.0,105190.0,0.36456511]
[1750732470381,0.24479918,105200.0,105190.0,0.36456511]
[1750732470792,0.24579918,105200.0,105190.0,0.36456511]
[1750732471377,0.08963918,105200.0,105190.0,0.36456511]
[1750732471911,0.08963918,105200.0,105190.0,0.34916511]
[1750732472259,0.08963918,105200.0,105190.0,0.36496511]
[1750732472463,0.04783918,105190.0,105180.0,0.3278]
[1750732472668,0.04783918,105180.0,105170.0,0.22223132]
[1750732472865,0.3730894,105180.0,105170.0,0.20013973]
[1750732473078,0.3730894,105180.0,105170.0,0.21915592]
[1750732473079,0.08855918,105180.0,105170.0,0.21915592]
[1750732473280,0.08855918,105180.0,105170.0,0.2286637]
[1750732473972,0.08955918,105180.0,105170.0,0.2286637]
[1750732474130,0.08955918,105180.0,105170.0,0.24496379]
[1750732474386,0.08955918,105180.0,105170.0,0.23545592]
[1750732474794,0.08955918,105180.0,105170.0,0.24496379]
[1750732474996,0.08955918,105180.0,105170.0,0.23545592]
[1750732475368,0.08955918,105180.0,105170.0,0.2600637]
[1750732476998,0.08955918,105180.0,105170.0,0.26006379]
[1750732477283,0.08955918,105180.0,105170.0,0.26957157]
[1750732482634,0.08955918,105180.0,105170.0,0.56577157]
[1750732484820,0.08955918,105180.0,105170.0,0.85030179]
[1750732485033,0.08955918,105180.0,105170.0,0.94580365]
[1750732485447,0.04172,105180.0,105170.0,0.94580365]
[1750732485652,0.001,105180.0,105170.0,0.94580365]
[1750732485859,0.04176,105180.0,105170.0,0.630588]
[1750732486072,0.04176,105180.0,105170.0,0.64009578]
[1750732486481,0.08959918,105180.0,105170.0,0.35556556]
[1750732487247,0.08959918,105180.0,105170.0,0.64009578]
[1750732489878,0.08959918,105180.0,105170.0,0.35556556]
[1750732490101,0.08959918,105180.0,105170.0,0.64009578]
[1750732491755,0.08959918,105180.0,105170.0,0.93629578]
[1750732500651,0.001,105180.0,105170.0,0.93629578]
[1750732501064,0.001,105180.0,105170.0,0.80824556]
[1750732501343,0.04883918,105180.0,105170.0,0.80824556]
[1750732501556,0.04883918,105180.0,105170.0,1.09277578]
[1750732502255,0.04883918,105180.0,105170.0,1.09377578]
[1750732502698,0.04883918,105180.0,105170.0,1.15377578]
[1750732503024,0.04783918,105180.0,105170.0,1.15377578]
[1750732503239,0.04783918,105180.0,105170.0,1.15577578]
[1750732504590,0.08859918,105190.0,105180.0,0.25057164]
[1750732504796,0.08859918,105190.0,105180.0,0.63060372]
[1750732504797,0.04076,105190.0,105180.0,0.63060372]
[1750732506337,0.04076,105190.0,105180.0,0.87889936]
[1750732507105,0.04783918,105200.0,105190.0,0.21865086]
[1750732507303,0.27627918,105210.0,105200.0,0.23513008]
[1750732507527,0.31719918,105210.0,105200.0,0.50154301]
[1750732507709,0.27627918,105210.0,105200.0,0.50154301]
[1750732507930,0.31719918,105210.0,105200.0,0.50154301]
[1750732508092,0.31719918,105210.0,105200.0,0.51654301]
[1750732508335,0.31719918,105210.0,105200.0,0.24813008]
[1750732509124,0.31719918,105210.0,105200.0,0.23313008]
[1750732509459,0.31719918,105210.0,105200.0,0.52933008]
[1750732510242,0.31719918,105210.0,105200.0,0.54433008]
[1750732512183,0.31719918,105210.0,105200.0,0.9239556]
[1750732512544,0.31719918,105210.0,105200.0,0.63983194]
[1750732512742,0.31719918,105210.0,105200.0,0.60082687]
[1750732513099,0.31719918,105210.0,105200.0,0.76665194]
[1750732513313,0.31719918,105210.0,105200.0,0.61033194]
[1750732513511,0.32119918,105210.0,105200.0,0.61033194]
[1750732513826,0.31719918,105210.0,105200.0,0.61033194]
[1750732513998,0.31719918,105210.0,105200.0,0.61033203]
[1750732514411,0.31719918,105210.0,105200.0,0.61033212]
[1750732514607,0.31719918,105210.0,105200.0,0.61983719]
[1750732514959,0.31719918,105210.0,105200.0,0.65203728]
[1750732515174,0.31719918,105210.0,105200.0,0.64253212]
[1750732515426,0.31719918,105210.0,105200.0,0.35583728]
[1750732516266,0.31719918,105210.0,105200.0,0.31413212]
[1750732516394,0.31719918,105210.0,105200.0,0.32363728]
[1750732516587,0.31719918,105210.0,105200.0,0.31413212]
[1750732517486,0.31719918,105210.0,105200.0,0.29512153]
[1750732517664,0.31719918,105210.0,105200.0,0.30462696]
[1750732517968,0.31719918,105210.0,105200.0,0.30462705]
[1750732518113,0.31719918,105210.0,105200.0,0.31413248]
[1750732518346,0.04783918,105200.0,105190.0,0.22414489]
[1750732518545,0.07575918,105200.0,105190.0,0.09550186]
[1750732518751,0.04535918,105190.0,105180.0,0.23366756]
[1750732518979,0.04535918,105190.0,105180.0,0.30466246]
[1750732519238,0.04535918,105180.0,105170.0,0.25025097]
[1750732519452,0.08627918,105180.0,105170.0,0.47101283]
[1750732519636,0.08627918,105180.0,105170.0,0.4805207]
[1750732519872,0.08627918,105180.0,105170.0,0.33366884]
[1750732521224,0.08627918,105180.0,105170.0,0.6495925]
[1750732523619,0.08627918,105180.0,105170.0,0.7095925]
[1750732523969,0.08627918,105180.0,105170.0,0.8660325]
[1750732527418,0.08627918,105180.0,105170.0,0.58190884]
[1750732527628,0.08627918,105180.0,105170.0,0.8660325]
[1750732532777,0.08627918,105180.0,105170.0,0.8341525]
[1750732533163,0.08627918,105180.0,105170.0,1.1303525]
[1750732533402,0.08627918,105180.0,105170.0,0.67085292]
[1750732533611,0.10287918,105180.0,105170.0,0.59436689]
[1750732533792,0.11877918,105180.0,105170.0,0.06046303]
[1750732534009,0.11877918,105180.0,105170.0,0.07947976]
[1750732534230,0.11877918,105180.0,105170.0,0.06046303]
[1750732534435,0.41744369,105180.0,105170.0,0.06046303]
[1750732534659,0.41744369,105180.0,105170.0,0.00046303]
[1750732534874,0.42707154,105180.0,105170.0,0.00046303]
[1750732535496,0.41744369,105180.0,105170.0,0.00046303]
[1750732535698,0.41844369,105180.0,105170.0,0.00046303]
[1750732535900,0.41944369,105180.0,105170.0,0.00046303]
[1750732536917,0.51494555,105180.0,105170.0,0.00046303]
[1750732539262,0.52471381,105180.0,105170.0,0.00046303]
[1750732540649,0.86471381,105180.0,105170.0,0.00046303]
[1750732541622,0.86371381,105180.0,105170.0,0.00046303]
[1750732541829,0.86271381,105180.0,105170.0,0.00046303]
[1750732542001,0.86571381,105180.0,105170.0,0.00046303]
[1750732542245,1.01218555,105180.0,105170.0,0.00046303]
[1750732542477,1.01418555,105180.0,105170.0,0.00046303]
[1750732543130,1.02380502,105180.0,105170.0,0.00046303]
[1750732543761,1.01418555,105180.0,105170.0,0.00046303]
[1750732546070,0.73006189,105180.0,105170.0,0.00046303]
[1750732546257,1.01418555,105180.0,105170.0,0.00046303]
[1750732547703,1.30797541,105180.0,105170.0,0.00046303]
[1750732548349,1.40344536,105180.0,105170.0,0.00046303]
[1750732548560,1.40712192,105180.0,105170.0,0.00046303]
[1750732548761,1.388108,105180.0,105170.0,0.00046303]
[1750732549169,1.39761487,105180.0,105170.0,0.00046303]
[1750732550024,1.388108,105180.0,105170.0,0.00046303]
[1750732550161,1.39761478,105180.0,105170.0,0.00046303]
[1750732550811,1.38875361,105180.0,105170.0,0.00046303]
[1750732551032,1.38810242,105180.0,105170.0,0.00046303]
[1750732551173,1.36674515,105180.0,105170.0,0.00046303]
[1750732551379,1.35723837,105180.0,105170.0,0.00046303]
[1750732551581,1.16007837,105180.0,105170.0,0.00046303]
[1750732551788,0.74287028,105180.0,105170.0,0.00046303]
[1750732552009,1.0092709,105180.0,105170.0,0.00046303]
[1750732552212,1.02381175,105180.0,105170.0,0.00046303]
[1750732552850,0.05035918,105180.0,105170.0,0.00046303]
[1750732553079,0.24747918,105180.0,105170.0,0.03266303]
[1750732553248,0.05035918,105180.0,105170.0,0.03266303]
[1750732553474,0.24751918,105180.0,105170.0,0.03266303]
[1750732553875,0.24751918,105180.0,105170.0,0.00046303]
[1750732553876,0.36552369,105180.0,105170.0,0.00046303]
[1750732554072,0.54618369,105180.0,105170.0,0.00046303]
[1750732556622,0.34902369,105180.0,105170.0,0.00046303]
[1750732556831,0.54614369,105180.0,105170.0,0.00046303]
[1750732557390,0.26202003,105180.0,105170.0,0.00046303]
[1750732559014,0.26202003,105180.0,105170.0,0.03106303]
[1750732560256,0.26202003,105180.0,105170.0,0.04057144]
[1750732561032,0.26202003,105180.0,105170.0,0.03106303]
[1750732561581,0.24747918,105180.0,105170.0,0.5338794]
[1750732561780,0.24747918,105180.0,105170.0,0.54338718]
[1750732561979,0.24747918,105180.0,105170.0,0.25926352]
[1750732562522,0.24747918,105180.0,105170.0,0.24975574]
[1750732562722,0.24747918,105180.0,105170.0,0.53644787]
[1750732563018,0.24747918,105180.0,105170.0,0.5459561]
[1750732563230,0.24747918,105180.0,105170.0,0.53644796]
[1750732563427,0.24747918,105180.0,105170.0,0.5459561]
[1750732563685,0.24747918,105180.0,105170.0,0.55546415]
[1750732563891,0.09119918,105180.0,105170.0,0.56497202]
[1750732564092,0.09119918,105180.0,105170.0,0.56497139]
[1750732564949,0.09119918,105180.0,105170.0,0.64839691]
[1750732564950,0.09115918,105180.0,105170.0,0.64839691]
[1750732565902,0.08615918,105180.0,105170.0,0.64839691]
[1750732566073,0.08615918,105180.0,105170.0,0.65039691]
[1750732566298,0.08615918,105180.0,105170.0,0.65139691]
[1750732568682,0.08615918,105180.0,105170.0,0.94759691]
[1750732577014,0.08615918,105180.0,105170.0,1.10383691]
[1750732582141,0.04535918,105190.0,105180.0,0.21867164]
[1750732582277,0.04535918,105200.0,105190.0,0.21865086]
[1750732582482,0.08615918,105200.0,105190.0,0.23173865]
[1750732582677,0.04535918,105190.0,105180.0,0.3353659]
[1750732582886,0.04535918,105190.0,105180.0,0.4513994]
[1750732583081,0.04535918,105190.0,105180.0,0.30466645]
[1750732583312,0.04535918,105180.0,105170.0,0.66967973]
[1750732583505,0.41642369,105180.0,105170.0,0.29866303]
[1750732583711,0.41642369,105180.0,105170.0,0.29666303]
[1750732584135,0.41642369,105180.0,105170.0,0.00046303]
[1750732584337,0.13230003,105180.0,105170.0,0.00046303]
[1750732584540,0.41642369,105180.0,105170.0,0.00146303]
[1750732584712,0.41642369,105180.0,105170.0,0.00346303]
[1750732587367,0.41506369,105180.0,105170.0,0.00346303]
[1750732591323,0.44365169,105180.0,105170.0,0.00346303]
[1750732592868,1.16327721,105180.0,105170.0,0.00346303]
[1750732593283,1.1809963,105180.0,105170.0,0.00346303]
[1750732593716,1.316188,105180.0,105170.0,0.00246303]
[1750732593933,1.33885979,105180.0,105170.0,0.00046303]
[1750732594148,1.35136657,105180.0,105170.0,0.00046303]
[1750732594353,1.36087362,105180.0,105170.0,0.00046303]
[1750732594557,1.26940358,105180.0,105170.0,0.00046303]
[1750732594761,1.26540358,105180.0,105170.0,0.00046303]
[1750732594977,1.28141832,105180.0,105170.0,0.00046303]
[1750732595182,1.28741832,105180.0,105170.0,0.00046303]
[1750732595389,6.34405138,105180.0,105170.0,0.00046303]
[1750732595600,6.30367982,105180.0,105170.0,0.00046303]
[1750732595812,6.51280963,105180.0,105170.0,0.00046303]
[1750732596019,6.54667093,105180.0,105170.0,0.00046303]
[1750732596235,6.53716397,105180.0,105170.0,0.00046303]
[1750732596453,0.08884003,105150.0,105140.0,0.07596185]
[1750732596668,1.51906921,105150.0,105140.0,0.07596185]
[1750732596885,1.51906921,105150.0,105140.0,0.000301]
[1750732597298,1.54767121,105150.0,105140.0,0.000301]
[1750732597922,1.54767121,105150.0,105140.0,0.004301]
[1750732598757,1.54767121,105150.0,105140.0,0.002301]
[1750732599605,1.54767121,105150.0,105140.0,0.000301]
[1750732599814,1.55067121,105150.0,105140.0,0.000301]
[1750732600027,1.26654755,105150.0,105140.0,0.000301]
[1750732600256,1.26854755,105150.0,105140.0,0.000301]
[1750732600679,1.27816333,105150.0,105140.0,0.000301]
[1750732602160,1.27824333,105150.0,105140.0,0.000301]
[1750732604053,1.56236699,105150.0,105140.0,0.000301]
[1750732604477,1.27824333,105150.0,105140.0,0.000301]
[1750732605833,1.56236699,105150.0,105140.0,0.000301]
[1750732606350,1.60916113,105150.0,105140.0,0.000301]
[1750732606741,1.59042548,105150.0,105140.0,0.000301]
[1750732608133,1.60944456,105150.0,105140.0,0.000301]
[1750732608340,1.67846418,105150.0,105140.0,0.000301]
[1750732608693,1.88627087,105150.0,105140.0,0.000301]
[1750732608895,6.93978512,105150.0,105140.0,0.000301]
[1750732609147,7.31866648,105150.0,105140.0,0.000301]
[1750732609336,7.41868347,105150.0,105140.0,0.000301]
[1750732609557,7.42527995,105150.0,105140.0,0.000301]
[1750732609762,0.67731004,105130.0,105120.0,0.0002]
[1750732609952,0.9295319,105130.0,105120.0,0.0002]
[1750732610176,1.04928256,105130.0,105120.0,0.0002]
[1750732610419,0.96332401,105130.0,105120.0,0.0002]
[1750732610627,1.59791004,105130.0,105120.0,0.0002]
[1750732610830,1.6155038,105130.0,105120.0,0.0002]
[1750732611047,1.63802505,105130.0,105120.0,0.00024628]
[1750732611249,1.733495,105130.0,105120.0,0.00024628]
[1750732611456,1.733495,105130.0,105120.0,0.00224628]
[1750732611657,6.59325435,105130.0,105120.0,0.00224628]
[1750732611859,6.59325435,105130.0,105120.0,0.00024628]
[1750732612067,6.60776638,105130.0,105120.0,0.00024628]
[1750732612298,6.7877765,105130.0,105120.0,0.00024628]
[1750732612513,6.7827765,105130.0,105120.0,0.00024628]
[1750732612714,6.78976737,105130.0,105120.0,0.00024628]
[1750732612973,6.79936166,105130.0,105120.0,0.00024628]
[1750732613153,1.09517224,105130.0,105120.0,0.00024628]
[1750732613361,1.45783063,105130.0,105120.0,0.00024628]
[1750732613614,6.68555998,105130.0,105120.0,0.00024628]
[1750732613833,6.70984069,105130.0,105120.0,0.00024628]
[1750732614040,6.80931064,105130.0,105120.0,0.00024628]
[1750732614491,6.81590636,105130.0,105120.0,0.00024628]
[1750732614705,6.85639478,105130.0,105120.0,0.00024628]
[1750732614911,6.88454586,105130.0,105120.0,0.00024628]
[1750732615515,6.88453975,105130.0,105120.0,0.00024628]
[1750732615668,6.94793475,105130.0,105120.0,0.00024628]
[1750732616082,6.92219847,105130.0,105120.0,0.00024628]
[1750732616321,6.92219746,105130.0,105120.0,0.00024628]
[1750732618249,6.92219796,105130.0,105120.0,0.00024628]
[1750732618477,6.89404688,105130.0,105120.0,0.00024628]
[1750732619757,6.4050727,105130.0,105120.0,0.00024628]
[1750732619969,6.72684729,105130.0,105120.0,0.00024628]
[1750732620170,6.67684729,105130.0,105120.0,0.00024628]
[1750732620334,6.71733562,105130.0,105120.0,0.00024628]
[1750732620534,6.72684729,105130.0,105120.0,0.00024628]
[1750732620734,6.72684982,105130.0,105120.0,0.00024628]
[1750732620939,6.66733815,105130.0,105120.0,0.00024628]
[1750732621148,6.66737806,105130.0,105120.0,0.00024628]
[1750732621418,6.44276598,105130.0,105120.0,0.00024628]
[1750732621850,6.39276598,105130.0,105120.0,0.00024628]
[1750732622027,6.67688964,105130.0,105120.0,0.00024628]
[1750732622227,6.45055038,105130.0,105120.0,0.00024628]
[1750732622433,6.64875038,105130.0,105120.0,0.00024628]
[1750732622611,6.70826214,105130.0,105120.0,0.00024628]
[1750732622810,6.6392388,105130.0,105120.0,0.00024628]
[1750732623226,6.70523846,105130.0,105120.0,0.00024628]
[1750732623419,6.70523836,105130.0,105120.0,0.00024628]
[1750732623735,6.70527995,105130.0,105120.0,0.00024628]
[1750732623939,6.42854587,105130.0,105120.0,0.00024628]
[1750732624147,1.13740566,105130.0,105120.0,0.00024628]
[1750732624375,1.57075201,105130.0,105120.0,0.00024628]
[1750732624570,1.54257026,105130.0,105120.0,0.00024628]
[1750732624789,1.34433026,105130.0,105120.0,0.00024628]
[1750732624925,1.85655154,105130.0,105120.0,0.00024628]
[1750732625129,1.90913039,105130.0,105120.0,0.00024628]
[1750732625370,6.95913039,105130.0,105120.0,0.00024628]
[1750732625589,6.94961881,105130.0,105120.0,0.00024628]
[1750732626021,6.9496197,105130.0,105120.0,0.00024628]
[1750732626201,6.91196098,105130.0,105120.0,0.00024628]
[1750732626402,6.9119674,105130.0,105120.0,0.00024628]
[1750732626936,6.92148789,105130.0,105120.0,0.00024628]
[1750732627141,6.70696653,105130.0,105120.0,0.00024628]
[1750732627437,6.71647856,105130.0,105120.0,0.00024628]
[1750732627825,6.66647847,105130.0,105120.0,0.00024628]
[1750732628251,6.71647847,105130.0,105120.0,0.00024628]
[1750732629232,6.71648164,105130.0,105120.0,0.00024628]
[1750732629434,6.71648585,105130.0,105120.0,0.00024628]
[1750732629790,6.62248667,105130.0,105120.0,0.00024628]
[1750732630026,6.71648585,105130.0,105120.0,0.00024628]
[1750732630653,6.9067265,105130.0,105120.0,0.00024628]
[1750732631452,6.71648585,105130.0,105120.0,0.00024628]
[1750732631935,6.9067265,105130.0,105120.0,0.00024628]
[1750732632106,6.85023842,105130.0,105120.0,0.00024628]
[1750732633001,6.85030064,105130.0,105120.0,0.00024628]
[1750732634174,6.92561809,105130.0,105120.0,0.00024628]
[1750732634947,6.91610651,105130.0,105120.0,0.00024628]
[1750732635153,6.91614161,105130.0,105120.0,0.00024628]
[1750732635739,6.90662976,105130.0,105120.0,0.00024628]
[1750732636160,0.44854003,105120.0,105110.0,0.000476]
[1750732636382,1.50131007,105120.0,105110.0,0.000476]
[1750732636597,1.52732246,105120.0,105110.0,0.000476]
[1750732636802,1.53683431,105120.0,105110.0,0.000476]
[1750732637022,1.56544831,105120.0,105110.0,0.000476]
[1750732637453,1.57496088,105120.0,105110.0,0.000476]
[1750732637663,1.57506088,105120.0,105110.0,0.000476]
[1750732637871,1.56654831,105120.0,105110.0,0.000476]
[1750732638083,1.75682613,105120.0,105110.0,0.000476]
[1750732638311,1.5100016,105120.0,105110.0,0.000476]
[1750732638733,1.50255795,105120.0,105110.0,0.000476]
[1750732638933,1.5025575,105120.0,105110.0,0.000476]
[1750732639138,1.49191757,105120.0,105110.0,0.000476]
[1750732639355,1.482405,105120.0,105110.0,0.000476]
[1750732639789,1.50143041,105120.0,105110.0,0.000476]
[1750732640618,1.47531757,105120.0,105110.0,0.000476]
[1750732640788,1.58033009,105120.0,105110.0,0.000476]
[1750732641240,1.56533009,105120.0,105110.0,0.000476]
[1750732642216,1.49001264,105120.0,105110.0,0.000476]
[1750732642393,1.46986014,105120.0,105110.0,0.000476]
[1750732642714,1.46034739,105120.0,105110.0,0.000476]
[1750732642912,1.37551737,105120.0,105110.0,0.000476]
[1750732643276,1.43222275,105120.0,105110.0,0.000476]
[1750732643477,1.44173532,105120.0,105110.0,0.000476]
[1750732643704,1.52770618,105120.0,105110.0,0.000476]
[1750732643880,1.53721884,105120.0,105110.0,0.000476]
[1750732644295,1.54673177,105120.0,105110.0,0.000476]
[1750732644646,1.53721884,105120.0,105110.0,0.000476]
[1750732644815,6.78699034,105120.0,105110.0,0.000476]
[1750732645018,6.75197284,105120.0,105110.0,0.000476]
[1750732645447,6.75207116,105120.0,105110.0,0.000476]
[1750732645956,6.57132534,105120.0,105110.0,0.000476]
[1750732646599,6.57132432,105120.0,105110.0,0.000476]
[1750732647175,6.75207068,105120.0,105110.0,0.000476]
[1750732647380,6.82738813,105120.0,105110.0,0.000476]
[1750732648170,6.75207068,105120.0,105110.0,0.000476]
[1750732649275,6.73591348,105120.0,105110.0,0.000476]
[1750732649480,6.79255965,105120.0,105110.0,0.000476]
[1750732649698,6.8178771,105120.0,105110.0,0.000476]
[1750732649901,6.8678771,105120.0,105110.0,0.000476]
[1750732650102,6.86787531,105120.0,105110.0,0.000476]
[1750732650309,6.79255786,105120.0,105110.0,0.000476]
[1750732650924,6.78304511,105120.0,105110.0,0.000476]
[1750732651141,6.77353218,105120.0,105110.0,0.000476]
[1750732651346,6.83021515,105120.0,105110.0,0.000476]
[1750732652173,0.05854003,105100.0,105090.0,0.10353685]
[1750732652375,0.92037921,105100.0,105090.0,0.10353685]
[1750732652582,0.92037921,105100.0,105090.0,0.10358312]
[1750732652793,0.92037828,105100.0,105090.0,0.10358312]
[1750732652968,0.94899528,105100.0,105090.0,0.10358312]
[1750732653420,0.94899528,105100.0,105090.0,0.10758312]
[1750732654069,0.93349571,105100.0,105090.0,0.10758312]
[1750732654486,0.93349571,105100.0,105090.0,0.03604627]
[1750732654935,0.93349571,105100.0,105090.0,0.03204627]
[1750732655139,0.93449571,105100.0,105090.0,0.03204627]
[1750732655760,0.93449571,105100.0,105090.0,0.03304627]
[1750732657873,0.91678434,105100.0,105090.0,0.03304627]
[1750732660564,1.21042202,105100.0,105090.0,0.01714627]
[1750732660767,0.92629836,105100.0,105090.0,0.01714627]
[1750732660942,1.07176831,105100.0,105090.0,0.01714627]
[1750732661144,0.91678434,105100.0,105090.0,0.03214627]
[1750732664089,0.92629836,105100.0,105090.0,0.03214627]
[1750732665704,0.91678434,105100.0,105090.0,0.03214627]
[1750732670598,0.92629827,105100.0,105090.0,0.03214627]
[1750732671416,0.93581238,105100.0,105090.0,0.01714627]
[1750732671589,0.92629827,105100.0,105090.0,0.01714627]
[1750732671802,0.91678434,105100.0,105090.0,0.03264627]
[1750732672202,0.92629836,105100.0,105090.0,0.03264627]
[1750732672413,0.91678434,105100.0,105090.0,0.03264627]
[1750732673736,0.93293546,105100.0,105090.0,0.03264627]
[1750732673943,0.95948386,105100.0,105090.0,0.03264627]
[1750732674323,0.95063442,105100.0,105090.0,0.01714627]
[1750732674487,0.95063442,105100.0,105090.0,0.00104627]
[1750732674689,1.68969778,105100.0,105090.0,0.00104627]
[1750732674914,1.67146659,105100.0,105090.0,0.00104627]
[1750732676039,6.95297637,105100.0,105090.0,0.00104627]
[1750732676301,6.99076015,105100.0,105090.0,0.00104627]
[1750732676492,6.98124595,105100.0,105090.0,0.00104627]
[1750732676907,6.58752493,105100.0,105090.0,0.00104627]
[1750732677112,6.8082372,105100.0,105090.0,0.00104627]
[1750732677318,6.81775176,105100.0,105090.0,0.00104627]
[1750732677735,6.80823459,105100.0,105090.0,0.00104627]
[1750732677938,6.82463459,105100.0,105090.0,0.00104627]
[1750732679432,6.85054978,105100.0,105090.0,0.00104627]
[1750732679628,7.04084473,105100.0,105090.0,0.00104627]
[1750732679806,7.10016111,105100.0,105090.0,0.00104627]
[1750732680396,7.06237733,105100.0,105090.0,0.00104627]
[1750732680606,7.06237733,105100.0,105070.0,0.0002]
[1750732680607,0.46757196,105080.0,105070.0,0.0002]
[1750732680784,0.46757196,105080.0,105070.0,0.00024627]
[1750732680785,1.41327051,105080.0,105070.0,0.00024627]
[1750732680996,6.75623768,105080.0,105070.0,0.00024627]
[1750732681218,6.79397524,105080.0,105070.0,0.00024627]
[1750732681425,6.84466862,105080.0,105070.0,0.00024627]
[1750732681635,6.87294256,105080.0,105070.0,0.00024627]
[1750732681985,6.5888189,105080.0,105070.0,0.00024627]
[1750732682186,6.51876787,105080.0,105070.0,0.00024627]
[1750732683000,6.52270848,105080.0,105070.0,0.00024627]
[1750732683496,6.30415612,105080.0,105070.0,0.00024627]
[1750732683701,6.06425975,105080.0,105070.0,0.00024627]
[1750732683899,6.06425975,105080.0,105070.0,0.03124627]
[1750732683900,1.03112389,105080.0,105070.0,0.03124627]
[1750732684106,1.04045693,105080.0,105070.0,0.03124627]
[1750732684920,0.99645775,105080.0,105070.0,0.03124627]
[1750732685114,1.04045693,105080.0,105070.0,0.03124627]
[1750732685354,1.01777514,105080.0,105070.0,0.03124627]
[1750732685546,0.82049514,105080.0,105070.0,0.03124627]
[1750732685919,1.01777514,105080.0,105070.0,0.03124627]
[1750732686128,1.04987556,105080.0,105070.0,0.03124627]
[1750732686347,1.05939148,105080.0,105070.0,0.03124627]
[1750732686557,1.04987556,105080.0,105070.0,0.03124627]
[1750732686770,1.04035982,105080.0,105070.0,0.03124627]
[1750732687382,1.05187565,105080.0,105070.0,0.03124627]
[1750732687736,1.04987565,105080.0,105070.0,0.03124627]
[1750732687950,1.05387556,105080.0,105070.0,0.03124627]
[1750732688423,1.07290758,105080.0,105070.0,0.03124627]
[1750732688625,1.06339148,105080.0,105070.0,0.03124627]
[1750732689222,1.04435982,105080.0,105070.0,0.03124627]
[1750732690249,1.07298282,105080.0,105070.0,0.03124627]
[1750732691643,0.78885916,105080.0,105070.0,0.03124627]
[1750732691849,1.07298282,105080.0,105070.0,0.03124627]
[1750732694304,1.06898282,105080.0,105070.0,0.03124627]
[1750732694811,1.06498282,105080.0,105070.0,0.03124627]
[1750732695218,1.06598282,105080.0,105070.0,0.03124627]
[1750732698101,0.07405786,105070.0,105060.0,0.0002]
[1750732698325,1.26638808,105070.0,105060.0,0.0002]
[1750732698540,1.26638808,105070.0,105060.0,0.00066309]
[1750732698541,0.98226442,105070.0,105060.0,0.00066309]
[1750732698983,0.95723023,105070.0,105060.0,0.00066309]
[1750732699204,0.97552555,105070.0,105060.0,0.03336309]
[1750732699427,0.97552555,105070.0,105060.0,0.03436309]
[1750732700210,0.77816555,105070.0,105060.0,0.03436309]
[1750732700428,0.69144189,105070.0,105060.0,0.03436309]
[1750732701064,0.69144189,105070.0,105060.0,0.03636309]
[1750732701457,0.97556555,105070.0,105060.0,0.03636309]
[1750732703761,0.97556555,105070.0,105060.0,0.32048675]
[1750732703762,0.08483918,105070.0,105060.0,0.32048675]
[1750732703987,0.08483918,105070.0,105060.0,0.03636309]
[1750732703988,0.24135918,105070.0,105060.0,0.03636309]
[1750732704185,0.25590003,105070.0,105060.0,0.03636309]
[1750732704454,0.25590003,105070.0,105060.0,0.04588146]
[1750732704644,0.25590003,105070.0,105060.0,0.03636309]
[1750732705064,0.25590003,105070.0,105060.0,0.04588146]
[1750732705265,0.25590003,105070.0,105060.0,0.03636309]
[1750732710035,0.54002369,105070.0,105060.0,0.03636309]
[1750732710645,0.63552555,105070.0,105060.0,0.03636309]
[1750732713081,0.35140189,105070.0,105060.0,0.03636309]
[1750732713284,0.63552555,105070.0,105060.0,0.03636309]
[1750732714893,0.35140189,105070.0,105060.0,0.03636309]
[1750732715303,0.25614003,105070.0,105060.0,0.03636309]
[1750732717334,0.25614003,105070.0,105060.0,0.03388309]
[1750732717870,0.05854003,105070.0,105060.0,0.03388309]
[1750732718084,0.25610003,105070.0,105060.0,0.03388309]
[1750732720900,0.25610003,105070.0,105060.0,0.24328694]
[1750732720901,0.25602003,105070.0,105060.0,0.24328694]
[1750732721097,0.25602003,105070.0,105060.0,0.25280503]
[1750732721300,0.09950003,105070.0,105060.0,0.25280503]
[1750732721505,0.25598003,105070.0,105060.0,0.26232303]
[1750732721842,0.25598003,105070.0,105060.0,0.25280503]
[1750732721966,0.25598003,105070.0,105060.0,0.24328694]
[1750732722183,0.25598003,105070.0,105060.0,0.03088309]
[1750732722817,0.25598003,105070.0,105060.0,0.04040146]
[1750732723647,0.25598003,105070.0,105060.0,0.05391973]
[1750732723856,0.25598003,105070.0,105060.0,0.24428713]
[1750732724150,0.25598003,105070.0,105060.0,0.26332322]
[1750732724356,0.25598003,105070.0,105060.0,0.25380522]
[1750732724574,0.25598003,105070.0,105060.0,0.25980522]
[1750732724779,0.25698003,105070.0,105060.0,0.25980522]
[1750732725187,0.25698003,105070.0,105060.0,0.26932331]
[1750732725414,0.25698003,105070.0,105060.0,0.27884122]
[1750732726016,0.25698003,105070.0,105060.0,0.26932285]
[1750732726513,0.25698003,105070.0,105060.0,0.25028694]
[1750732727473,0.25698003,105070.0,105060.0,0.24076876]
[1750732727678,0.25698003,105070.0,105060.0,0.25028694]
[1750732728528,0.25698003,105070.0,105060.0,0.04088309]
[1750732728739,0.25698003,105070.0,105060.0,0.05040146]
[1750732729132,0.25698003,105070.0,105060.0,0.05991973]
[1750732729329,0.25698003,105070.0,105060.0,0.05040146]
[1750732730171,0.25698003,105070.0,105060.0,0.05991973]
[1750732730852,0.25698003,105070.0,105060.0,0.06943791]
[1750732731591,0.25698003,105070.0,105060.0,0.05991973]
[1750732731811,0.25698003,105070.0,105060.0,0.05040146]
[1750732732005,0.25698003,105070.0,105060.0,0.05991973]
[1750732732143,0.25698003,105070.0,105060.0,0.06943791]
[1750732732366,0.25698003,105070.0,105060.0,0.04088309]
[1750732732574,0.25698003,105070.0,105060.0,0.05040146]
[1750732732775,0.25698003,105070.0,105060.0,0.05991973]
[1750732733720,0.25698003,105070.0,105060.0,0.05040146]
[1750732733930,0.25698003,105070.0,105060.0,0.05991973]
[1750732734171,0.25698003,105070.0,105060.0,0.04088309]
[1750732737169,0.25698003,105070.0,105060.0,0.05040146]